{"text_format":"3","workbook":"xlsx","n_sheets":3,"sheets":["Dagsplan","Hendelsesplanlegging","Tidsintervaller"],"not_rendered":{"defined_names":21},"read":"whole","date_system":"1900"}

{"sheet":"Dagsplan","index":0,"n_rows":76,"n_cols":13,"rows_kept":76,"merged":[[0,1,0,2],[1,1,5,2],[2,12,4,12],[3,7,4,7],[5,12,7,12],[6,1,8,2],[8,12,10,12],[9,7,10,7],[10,1,10,2],[11,12,13,12],[14,12,16,12],[15,7,16,7],[17,12,19,12],[18,1,18,2],[20,12,22,12],[21,7,22,7],[23,12,25,12],[24,1,24,2],[25,1,25,2],[26,7,27,7],[26,12,28,12],[29,12,31,12],[31,7,32,7],[32,12,34,12]]}
[null,"Dagsplan"]
[null,{"$f":"IFERROR(DAY(DateVal),\"\")","v":17},null,null,"Klokkeslett",{"$f":"IFERROR(UPPER(TEXT(DATE(ReportYear,MonthNumber,ReportDay),\"d. mmmm åååå\")),\"\")","v":"17. JUNI 2022"},null,"RASK OVERSIKT OVER UKEN",{"$nulls":3},"NOTATER/GJØREMÅLSLISTE"]
[{"$nulls":4},"Klokkeslett","Beskrivelse",null,{"$f":"IFERROR(TEXT(DATEVALUE(DateVal)+1,\"dddd\"),\"\")","v":"lørdag"},{"$f":"IFERROR(INDEX(EventScheduler[],MATCH($H$6&\"|\"&ROW(A1),EventScheduler[UNIK VERDI (BEREGNET)],0),2),\"\")","v":""},{"$f":"IFERROR(INDEX(EventScheduler[],MATCH($H$6&\"|\"&ROW(A1),EventScheduler[UNIK VERDI (BEREGNET)],0),3),\"\")","v":""},null,null,"Hente klær fra renseriet"]
[{"$nulls":4},{"$f":"Tidsintervaller!E3","v":"06:00:00"},{"$f":"IFERROR(INDEX(EventScheduler[],MATCH(DATEVALUE(DateVal)&DailySchedule[[#This Row],[Klokkeslett]],LookUpDateAndTime,0),3),\"\")","v":"Våkne"},null,{"$f":"IFERROR(TEXT(DATEVALUE(DateVal)+1,\"d\"),\"\")","v":"18"},{"$f":"IFERROR(INDEX(EventScheduler[],MATCH($H$6&\"|\"&ROW(A2),EventScheduler[UNIK VERDI (BEREGNET)],0),2),\"\")","v":"06:30:00"},{"$f":"IFERROR(INDEX(EventScheduler[],MATCH($H$6&\"|\"&ROW(A2),EventScheduler[UNIK VERDI (BEREGNET)],0),3),\"\")","v":"Frokost"}]
[{"$nulls":4},{"$f":"Tidsintervaller!E4","v":"06:15:00"},{"$f":"IFERROR(INDEX(EventScheduler[],MATCH(DATEVALUE(DateVal)&DailySchedule[[#This Row],[Klokkeslett]],LookUpDateAndTime,0),3),\"\")","v":""},null,null,{"$f":"IFERROR(INDEX(EventScheduler[],MATCH($H$6&\"|\"&ROW(A3),EventScheduler[UNIK VERDI (BEREGNET)],0),2),\"\")","v":""},{"$f":"IFERROR(INDEX(EventScheduler[],MATCH($H$6&\"|\"&ROW(A3),EventScheduler[UNIK VERDI (BEREGNET)],0),3),\"\")","v":""}]
[{"$nulls":4},{"$f":"Tidsintervaller!E5","v":"06:30:00"},{"$f":"IFERROR(INDEX(EventScheduler[],MATCH(DATEVALUE(DateVal)&DailySchedule[[#This Row],[Klokkeslett]],LookUpDateAndTime,0),3),\"\")","v":"Dusje"},null,{"$f":"IFERROR(DateVal+1,\"\")","v":"2022-06-18"},{"$f":"IFERROR(INDEX(EventScheduler[],MATCH($H$6&\"|\"&ROW(A4),EventScheduler[UNIK VERDI (BEREGNET)],0),2),\"\")","v":""},{"$f":"IFERROR(INDEX(EventScheduler[],MATCH($H$6&\"|\"&ROW(A4),EventScheduler[UNIK VERDI (BEREGNET)],0),3),\"\")","v":""},null,null,"Ringe kabelleverandøren"]
[null,{"$f":"IFERROR(TEXT(DateVal,\"dddd\"),\"\")","v":"fredag"},null,null,{"$f":"Tidsintervaller!E6","v":"06:45:00"},{"$f":"IFERROR(INDEX(EventScheduler[],MATCH(DATEVALUE(DateVal)&DailySchedule[[#This Row],[Klokkeslett]],LookUpDateAndTime,0),3),\"\")","v":""},null,null,{"$f":"IFERROR(INDEX(EventScheduler[],MATCH($H$6&\"|\"&ROW(A5),EventScheduler[UNIK VERDI (BEREGNET)],0),2),\"\")","v":""},{"$f":"IFERROR(INDEX(EventScheduler[],MATCH($H$6&\"|\"&ROW(A5),EventScheduler[UNIK VERDI (BEREGNET)],0),3),\"\")","v":""}]
[{"$nulls":4},{"$f":"Tidsintervaller!E7","v":"07:00:00"},{"$f":"IFERROR(INDEX(EventScheduler[],MATCH(DATEVALUE(DateVal)&DailySchedule[[#This Row],[Klokkeslett]],LookUpDateAndTime,0),3),\"\")","v":""},null,null,{"$f":"IFERROR(INDEX(EventScheduler[],MATCH($H$6&\"|\"&ROW(A6),EventScheduler[UNIK VERDI (BEREGNET)],0),2),\"\")","v":""},{"$f":"IFERROR(INDEX(EventScheduler[],MATCH($H$6&\"|\"&ROW(A6),EventScheduler[UNIK VERDI (BEREGNET)],0),3),\"\")","v":""}]
[{"$nulls":4},{"$f":"Tidsintervaller!E8","v":"07:15:00"},{"$f":"IFERROR(INDEX(EventScheduler[],MATCH(DATEVALUE(DateVal)&DailySchedule[[#This Row],[Klokkeslett]],LookUpDateAndTime,0),3),\"\")","v":""},null,{"$f":"IFERROR(TEXT(DATEVALUE(DateVal)+2,\"dddd\"),\"\")","v":"søndag"},{"$f":"IFERROR(INDEX(EventScheduler[],MATCH($H$12&\"|\"&ROW(A1),EventScheduler[UNIK VERDI (BEREGNET)],0),2),\"\")","v":""},{"$f":"IFERROR(INDEX(EventScheduler[],MATCH($H$12&\"|\"&ROW(A1),EventScheduler[UNIK VERDI (BEREGNET)],0),3),\"\")","v":""}]
[{"$nulls":4},{"$f":"Tidsintervaller!E9","v":"07:30:00"},{"$f":"IFERROR(INDEX(EventScheduler[],MATCH(DATEVALUE(DateVal)&DailySchedule[[#This Row],[Klokkeslett]],LookUpDateAndTime,0),3),\"\")","v":"Dra på arbeid"},null,{"$f":"IFERROR(TEXT(DATEVALUE(DateVal)+2,\"d\"),\"\")","v":"19"},{"$f":"IFERROR(INDEX(EventScheduler[],MATCH($H$12&\"|\"&ROW(A2),EventScheduler[UNIK VERDI (BEREGNET)],0),2),\"\")","v":""},{"$f":"IFERROR(INDEX(EventScheduler[],MATCH($H$12&\"|\"&ROW(A2),EventScheduler[UNIK VERDI (BEREGNET)],0),3),\"\")","v":""}]
[null,"VIS TIDSPLAN",null,null,{"$f":"Tidsintervaller!E10","v":"07:45:00"},{"$f":"IFERROR(INDEX(EventScheduler[],MATCH(DATEVALUE(DateVal)&DailySchedule[[#This Row],[Klokkeslett]],LookUpDateAndTime,0),3),\"\")","v":""},null,null,{"$f":"IFERROR(INDEX(EventScheduler[],MATCH($H$12&\"|\"&ROW(A3),EventScheduler[UNIK VERDI (BEREGNET)],0),2),\"\")","v":""},{"$f":"IFERROR(INDEX(EventScheduler[],MATCH($H$12&\"|\"&ROW(A3),EventScheduler[UNIK VERDI (BEREGNET)],0),3),\"\")","v":""}]
[{"$nulls":4},{"$f":"Tidsintervaller!E11","v":"08:00:00"},{"$f":"IFERROR(INDEX(EventScheduler[],MATCH(DATEVALUE(DateVal)&DailySchedule[[#This Row],[Klokkeslett]],LookUpDateAndTime,0),3),\"\")","v":"Starte skiftet mitt"},null,{"$f":"IFERROR(DateVal+2,\"\")","v":"2022-06-19"},{"$f":"IFERROR(INDEX(EventScheduler[],MATCH($H$12&\"|\"&ROW(A4),EventScheduler[UNIK VERDI (BEREGNET)],0),2),\"\")","v":""},{"$f":"IFERROR(INDEX(EventScheduler[],MATCH($H$12&\"|\"&ROW(A4),EventScheduler[UNIK VERDI (BEREGNET)],0),3),\"\")","v":""}]
[null,"År",null,null,{"$f":"Tidsintervaller!E12","v":"08:15:00"},{"$f":"IFERROR(INDEX(EventScheduler[],MATCH(DATEVALUE(DateVal)&DailySchedule[[#This Row],[Klokkeslett]],LookUpDateAndTime,0),3),\"\")","v":""},null,null,{"$f":"IFERROR(INDEX(EventScheduler[],MATCH($H$12&\"|\"&ROW(A5),EventScheduler[UNIK VERDI (BEREGNET)],0),2),\"\")","v":""},{"$f":"IFERROR(INDEX(EventScheduler[],MATCH($H$12&\"|\"&ROW(A5),EventScheduler[UNIK VERDI (BEREGNET)],0),3),\"\")","v":""}]
[{"$nulls":4},{"$f":"Tidsintervaller!E13","v":"08:30:00"},{"$f":"IFERROR(INDEX(EventScheduler[],MATCH(DATEVALUE(DateVal)&DailySchedule[[#This Row],[Klokkeslett]],LookUpDateAndTime,0),3),\"\")","v":""},null,null,{"$f":"IFERROR(INDEX(EventScheduler[],MATCH($H$12&\"|\"&ROW(A6),EventScheduler[UNIK VERDI (BEREGNET)],0),2),\"\")","v":""},{"$f":"IFERROR(INDEX(EventScheduler[],MATCH($H$12&\"|\"&ROW(A6),EventScheduler[UNIK VERDI (BEREGNET)],0),3),\"\")","v":""}]
[null,"Måned",null,null,{"$f":"Tidsintervaller!E14","v":"08:45:00"},{"$f":"IFERROR(INDEX(EventScheduler[],MATCH(DATEVALUE(DateVal)&DailySchedule[[#This Row],[Klokkeslett]],LookUpDateAndTime,0),3),\"\")","v":""},null,{"$f":"IFERROR(TEXT(DATEVALUE(DateVal)+3,\"dddd\"),\"\")","v":"mandag"},{"$f":"IFERROR(INDEX(EventScheduler[],MATCH($H$18&\"|\"&ROW(A1),EventScheduler[UNIK VERDI (BEREGNET)],0),2),\"\")","v":""},{"$f":"IFERROR(INDEX(EventScheduler[],MATCH($H$18&\"|\"&ROW(A1),EventScheduler[UNIK VERDI (BEREGNET)],0),3),\"\")","v":""}]
[{"$nulls":4},{"$f":"Tidsintervaller!E15","v":"09:00:00"},{"$f":"IFERROR(INDEX(EventScheduler[],MATCH(DATEVALUE(DateVal)&DailySchedule[[#This Row],[Klokkeslett]],LookUpDateAndTime,0),3),\"\")","v":""},null,{"$f":"IFERROR(TEXT(DATEVALUE(DateVal)+3,\"d\"),\"\")","v":"20"},{"$f":"IFERROR(INDEX(EventScheduler[],MATCH($H$18&\"|\"&ROW(A2),EventScheduler[UNIK VERDI (BEREGNET)],0),2),\"\")","v":""},{"$f":"IFERROR(INDEX(EventScheduler[],MATCH($H$18&\"|\"&ROW(A2),EventScheduler[UNIK VERDI (BEREGNET)],0),3),\"\")","v":""}]
[null,"Dag",null,null,{"$f":"Tidsintervaller!E16","v":"09:15:00"},{"$f":"IFERROR(INDEX(EventScheduler[],MATCH(DATEVALUE(DateVal)&DailySchedule[[#This Row],[Klokkeslett]],LookUpDateAndTime,0),3),\"\")","v":""},null,null,{"$f":"IFERROR(INDEX(EventScheduler[],MATCH($H$18&\"|\"&ROW(A3),EventScheduler[UNIK VERDI (BEREGNET)],0),2),\"\")","v":""},{"$f":"IFERROR(INDEX(EventScheduler[],MATCH($H$18&\"|\"&ROW(A3),EventScheduler[UNIK VERDI (BEREGNET)],0),3),\"\")","v":""}]
[{"$nulls":4},{"$f":"Tidsintervaller!E17","v":"09:30:00"},{"$f":"IFERROR(INDEX(EventScheduler[],MATCH(DATEVALUE(DateVal)&DailySchedule[[#This Row],[Klokkeslett]],LookUpDateAndTime,0),3),\"\")","v":""},null,{"$f":"IFERROR(DateVal+3,\"\")","v":"2022-06-20"},{"$f":"IFERROR(INDEX(EventScheduler[],MATCH($H$18&\"|\"&ROW(A4),EventScheduler[UNIK VERDI (BEREGNET)],0),2),\"\")","v":""},{"$f":"IFERROR(INDEX(EventScheduler[],MATCH($H$18&\"|\"&ROW(A4),EventScheduler[UNIK VERDI (BEREGNET)],0),3),\"\")","v":""}]
[null,"REDIGER TIDSPLAN",null,null,{"$f":"Tidsintervaller!E18","v":"09:45:00"},{"$f":"IFERROR(INDEX(EventScheduler[],MATCH(DATEVALUE(DateVal)&DailySchedule[[#This Row],[Klokkeslett]],LookUpDateAndTime,0),3),\"\")","v":""},null,null,{"$f":"IFERROR(INDEX(EventScheduler[],MATCH($H$18&\"|\"&ROW(A5),EventScheduler[UNIK VERDI (BEREGNET)],0),2),\"\")","v":""},{"$f":"IFERROR(INDEX(EventScheduler[],MATCH($H$18&\"|\"&ROW(A5),EventScheduler[UNIK VERDI (BEREGNET)],0),3),\"\")","v":""}]
[{"$nulls":4},{"$f":"Tidsintervaller!E19","v":"10:00:00"},{"$f":"IFERROR(INDEX(EventScheduler[],MATCH(DATEVALUE(DateVal)&DailySchedule[[#This Row],[Klokkeslett]],LookUpDateAndTime,0),3),\"\")","v":"Pause"},null,null,{"$f":"IFERROR(INDEX(EventScheduler[],MATCH($H$18&\"|\"&ROW(A6),EventScheduler[UNIK VERDI (BEREGNET)],0),2),\"\")","v":""},{"$f":"IFERROR(INDEX(EventScheduler[],MATCH($H$18&\"|\"&ROW(A6),EventScheduler[UNIK VERDI (BEREGNET)],0),3),\"\")","v":""}]
[null,"Velg for å redigere tidsintervaller",null,null,{"$f":"Tidsintervaller!E20","v":"10:15:00"},{"$f":"IFERROR(INDEX(EventScheduler[],MATCH(DATEVALUE(DateVal)&DailySchedule[[#This Row],[Klokkeslett]],LookUpDateAndTime,0),3),\"\")","v":""},null,{"$f":"IFERROR(TEXT(DATEVALUE(DateVal)+4,\"dddd\"),\"\")","v":"tirsdag"},{"$f":"IFERROR(INDEX(EventScheduler[],MATCH($H$24&\"|\"&ROW(A1),EventScheduler[UNIK VERDI (BEREGNET)],0),2),\"\")","v":""},{"$f":"IFERROR(INDEX(EventScheduler[],MATCH($H$24&\"|\"&ROW(A1),EventScheduler[UNIK VERDI (BEREGNET)],0),3),\"\")","v":""}]
[{"$nulls":4},{"$f":"Tidsintervaller!E21","v":"10:30:00"},{"$f":"IFERROR(INDEX(EventScheduler[],MATCH(DATEVALUE(DateVal)&DailySchedule[[#This Row],[Klokkeslett]],LookUpDateAndTime,0),3),\"\")","v":""},null,{"$f":"IFERROR(TEXT(DATEVALUE(DateVal)+4,\"d\"),\"\")","v":"21"},{"$f":"IFERROR(INDEX(EventScheduler[],MATCH($H$24&\"|\"&ROW(A2),EventScheduler[UNIK VERDI (BEREGNET)],0),2),\"\")","v":""},{"$f":"IFERROR(INDEX(EventScheduler[],MATCH($H$24&\"|\"&ROW(A2),EventScheduler[UNIK VERDI (BEREGNET)],0),3),\"\")","v":""}]
[null,"Velg for å legge til ny hendelse",null,null,{"$f":"Tidsintervaller!E22","v":"10:45:00"},{"$f":"IFERROR(INDEX(EventScheduler[],MATCH(DATEVALUE(DateVal)&DailySchedule[[#This Row],[Klokkeslett]],LookUpDateAndTime,0),3),\"\")","v":""},null,null,{"$f":"IFERROR(INDEX(EventScheduler[],MATCH($H$24&\"|\"&ROW(A3),EventScheduler[UNIK VERDI (BEREGNET)],0),2),\"\")","v":""},{"$f":"IFERROR(INDEX(EventScheduler[],MATCH($H$24&\"|\"&ROW(A3),EventScheduler[UNIK VERDI (BEREGNET)],0),3),\"\")","v":""}]
[{"$nulls":4},{"$f":"Tidsintervaller!E23","v":"11:00:00"},{"$f":"IFERROR(INDEX(EventScheduler[],MATCH(DATEVALUE(DateVal)&DailySchedule[[#This Row],[Klokkeslett]],LookUpDateAndTime,0),3),\"\")","v":""},null,{"$f":"IFERROR(DateVal+4,\"\")","v":"2022-06-21"},{"$f":"IFERROR(INDEX(EventScheduler[],MATCH($H$24&\"|\"&ROW(A4),EventScheduler[UNIK VERDI (BEREGNET)],0),2),\"\")","v":""},{"$f":"IFERROR(INDEX(EventScheduler[],MATCH($H$24&\"|\"&ROW(A4),EventScheduler[UNIK VERDI (BEREGNET)],0),3),\"\")","v":""}]
[null,"UTHEVING I TIDSPLAN:",null,null,{"$f":"Tidsintervaller!E24","v":"11:15:00"},{"$f":"IFERROR(INDEX(EventScheduler[],MATCH(DATEVALUE(DateVal)&DailySchedule[[#This Row],[Klokkeslett]],LookUpDateAndTime,0),3),\"\")","v":""},null,null,{"$f":"IFERROR(INDEX(EventScheduler[],MATCH($H$24&\"|\"&ROW(A5),EventScheduler[UNIK VERDI (BEREGNET)],0),2),\"\")","v":""},{"$f":"IFERROR(INDEX(EventScheduler[],MATCH($H$24&\"|\"&ROW(A5),EventScheduler[UNIK VERDI (BEREGNET)],0),3),\"\")","v":""}]
[null,"Pause",null,null,{"$f":"Tidsintervaller!E25","v":"11:30:00"},{"$f":"IFERROR(INDEX(EventScheduler[],MATCH(DATEVALUE(DateVal)&DailySchedule[[#This Row],[Klokkeslett]],LookUpDateAndTime,0),3),\"\")","v":""},null,{"$f":"IFERROR(TEXT(DATEVALUE(DateVal)+5,\"dddd\"),\"\")","v":"onsdag"},{"$f":"IFERROR(INDEX(EventScheduler[],MATCH($H$29&\"|\"&ROW(A1),EventScheduler[UNIK VERDI (BEREGNET)],0),2),\"\")","v":""},{"$f":"IFERROR(INDEX(EventScheduler[],MATCH($H$29&\"|\"&ROW(A1),EventScheduler[UNIK VERDI (BEREGNET)],0),3),\"\")","v":""}]
[{"$nulls":4},{"$f":"Tidsintervaller!E26","v":"11:45:00"},{"$f":"IFERROR(INDEX(EventScheduler[],MATCH(DATEVALUE(DateVal)&DailySchedule[[#This Row],[Klokkeslett]],LookUpDateAndTime,0),3),\"\")","v":""},null,{"$f":"IFERROR(TEXT(DATEVALUE(DateVal)+5,\"d\"),\"\")","v":"22"},{"$f":"IFERROR(INDEX(EventScheduler[],MATCH($H$29&\"|\"&ROW(A2),EventScheduler[UNIK VERDI (BEREGNET)],0),2),\"\")","v":""},{"$f":"IFERROR(INDEX(EventScheduler[],MATCH($H$29&\"|\"&ROW(A2),EventScheduler[UNIK VERDI (BEREGNET)],0),3),\"\")","v":""}]
[{"$nulls":4},{"$f":"Tidsintervaller!E27","v":"12:00:00"},{"$f":"IFERROR(INDEX(EventScheduler[],MATCH(DATEVALUE(DateVal)&DailySchedule[[#This Row],[Klokkeslett]],LookUpDateAndTime,0),3),\"\")","v":"Lunsj"},null,null,{"$f":"IFERROR(INDEX(EventScheduler[],MATCH($H$29&\"|\"&ROW(A3),EventScheduler[UNIK VERDI (BEREGNET)],0),2),\"\")","v":""},{"$f":"IFERROR(INDEX(EventScheduler[],MATCH($H$29&\"|\"&ROW(A3),EventScheduler[UNIK VERDI (BEREGNET)],0),3),\"\")","v":""}]
[{"$nulls":4},{"$f":"Tidsintervaller!E28","v":"12:15:00"},{"$f":"IFERROR(INDEX(EventScheduler[],MATCH(DATEVALUE(DateVal)&DailySchedule[[#This Row],[Klokkeslett]],LookUpDateAndTime,0),3),\"\")","v":""},null,{"$f":"IFERROR(DateVal+5,\"\")","v":"2022-06-22"},{"$f":"IFERROR(INDEX(EventScheduler[],MATCH($H$29&\"|\"&ROW(A4),EventScheduler[UNIK VERDI (BEREGNET)],0),2),\"\")","v":""},{"$f":"IFERROR(INDEX(EventScheduler[],MATCH($H$29&\"|\"&ROW(A4),EventScheduler[UNIK VERDI (BEREGNET)],0),3),\"\")","v":""}]
[{"$nulls":4},{"$f":"Tidsintervaller!E29","v":"12:30:00"},{"$f":"IFERROR(INDEX(EventScheduler[],MATCH(DATEVALUE(DateVal)&DailySchedule[[#This Row],[Klokkeslett]],LookUpDateAndTime,0),3),\"\")","v":""},null,null,{"$f":"IFERROR(INDEX(EventScheduler[],MATCH($H$29&\"|\"&ROW(A5),EventScheduler[UNIK VERDI (BEREGNET)],0),2),\"\")","v":""},{"$f":"IFERROR(INDEX(EventScheduler[],MATCH($H$29&\"|\"&ROW(A5),EventScheduler[UNIK VERDI (BEREGNET)],0),3),\"\")","v":""}]
[{"$nulls":4},{"$f":"Tidsintervaller!E30","v":"12:45:00"},{"$f":"IFERROR(INDEX(EventScheduler[],MATCH(DATEVALUE(DateVal)&DailySchedule[[#This Row],[Klokkeslett]],LookUpDateAndTime,0),3),\"\")","v":""},null,{"$f":"IFERROR(TEXT(DATEVALUE(DateVal)+6,\"dddd\"),\"\")","v":"torsdag"},{"$f":"IFERROR(INDEX(EventScheduler[],MATCH($H$34&\"|\"&ROW(A1),EventScheduler[UNIK VERDI (BEREGNET)],0),2),\"\")","v":""},{"$f":"IFERROR(INDEX(EventScheduler[],MATCH($H$34&\"|\"&ROW(A1),EventScheduler[UNIK VERDI (BEREGNET)],0),3),\"\")","v":""}]
[{"$nulls":4},{"$f":"Tidsintervaller!E31","v":"13:00:00"},{"$f":"IFERROR(INDEX(EventScheduler[],MATCH(DATEVALUE(DateVal)&DailySchedule[[#This Row],[Klokkeslett]],LookUpDateAndTime,0),3),\"\")","v":""},null,{"$f":"IFERROR(TEXT(DATEVALUE(DateVal)+6,\"d\"),\"\")","v":"23"},{"$f":"IFERROR(INDEX(EventScheduler[],MATCH($H$34&\"|\"&ROW(A2),EventScheduler[UNIK VERDI (BEREGNET)],0),2),\"\")","v":""},{"$f":"IFERROR(INDEX(EventScheduler[],MATCH($H$34&\"|\"&ROW(A2),EventScheduler[UNIK VERDI (BEREGNET)],0),3),\"\")","v":""}]
[{"$nulls":4},{"$f":"Tidsintervaller!E32","v":"13:15:00"},{"$f":"IFERROR(INDEX(EventScheduler[],MATCH(DATEVALUE(DateVal)&DailySchedule[[#This Row],[Klokkeslett]],LookUpDateAndTime,0),3),\"\")","v":""},null,null,{"$f":"IFERROR(INDEX(EventScheduler[],MATCH($H$34&\"|\"&ROW(A3),EventScheduler[UNIK VERDI (BEREGNET)],0),2),\"\")","v":""},{"$f":"IFERROR(INDEX(EventScheduler[],MATCH($H$34&\"|\"&ROW(A3),EventScheduler[UNIK VERDI (BEREGNET)],0),3),\"\")","v":""}]
[{"$nulls":4},{"$f":"Tidsintervaller!E33","v":"13:30:00"},{"$f":"IFERROR(INDEX(EventScheduler[],MATCH(DATEVALUE(DateVal)&DailySchedule[[#This Row],[Klokkeslett]],LookUpDateAndTime,0),3),\"\")","v":"Ringe sjefene"},null,{"$f":"IFERROR(DateVal+6,\"\")","v":"2022-06-23"},{"$f":"IFERROR(INDEX(EventScheduler[],MATCH($H$34&\"|\"&ROW(A4),EventScheduler[UNIK VERDI (BEREGNET)],0),2),\"\")","v":""},{"$f":"IFERROR(INDEX(EventScheduler[],MATCH($H$34&\"|\"&ROW(A4),EventScheduler[UNIK VERDI (BEREGNET)],0),3),\"\")","v":""}]
[{"$nulls":4},{"$f":"Tidsintervaller!E34","v":"13:45:00"},{"$f":"IFERROR(INDEX(EventScheduler[],MATCH(DATEVALUE(DateVal)&DailySchedule[[#This Row],[Klokkeslett]],LookUpDateAndTime,0),3),\"\")","v":""},null,null,{"$f":"IFERROR(INDEX(EventScheduler[],MATCH($H$34&\"|\"&ROW(A5),EventScheduler[UNIK VERDI (BEREGNET)],0),2),\"\")","v":""},{"$f":"IFERROR(INDEX(EventScheduler[],MATCH($H$34&\"|\"&ROW(A5),EventScheduler[UNIK VERDI (BEREGNET)],0),3),\"\")","v":""}]
[{"$nulls":4},{"$f":"Tidsintervaller!E35","v":"14:00:00"},{"$f":"IFERROR(INDEX(EventScheduler[],MATCH(DATEVALUE(DateVal)&DailySchedule[[#This Row],[Klokkeslett]],LookUpDateAndTime,0),3),\"\")","v":""}]
[{"$nulls":4},{"$f":"Tidsintervaller!E36","v":"14:15:00"},{"$f":"IFERROR(INDEX(EventScheduler[],MATCH(DATEVALUE(DateVal)&DailySchedule[[#This Row],[Klokkeslett]],LookUpDateAndTime,0),3),\"\")","v":""}]
[{"$nulls":4},{"$f":"Tidsintervaller!E37","v":"14:30:00"},{"$f":"IFERROR(INDEX(EventScheduler[],MATCH(DATEVALUE(DateVal)&DailySchedule[[#This Row],[Klokkeslett]],LookUpDateAndTime,0),3),\"\")","v":""}]
[{"$nulls":4},{"$f":"Tidsintervaller!E38","v":"14:45:00"},{"$f":"IFERROR(INDEX(EventScheduler[],MATCH(DATEVALUE(DateVal)&DailySchedule[[#This Row],[Klokkeslett]],LookUpDateAndTime,0),3),\"\")","v":""}]
[{"$nulls":4},{"$f":"Tidsintervaller!E39","v":"15:00:00"},{"$f":"IFERROR(INDEX(EventScheduler[],MATCH(DATEVALUE(DateVal)&DailySchedule[[#This Row],[Klokkeslett]],LookUpDateAndTime,0),3),\"\")","v":"Pause"}]
[{"$nulls":4},{"$f":"Tidsintervaller!E40","v":"15:15:00"},{"$f":"IFERROR(INDEX(EventScheduler[],MATCH(DATEVALUE(DateVal)&DailySchedule[[#This Row],[Klokkeslett]],LookUpDateAndTime,0),3),\"\")","v":""}]
[{"$nulls":4},{"$f":"Tidsintervaller!E41","v":"15:30:00"},{"$f":"IFERROR(INDEX(EventScheduler[],MATCH(DATEVALUE(DateVal)&DailySchedule[[#This Row],[Klokkeslett]],LookUpDateAndTime,0),3),\"\")","v":""}]
[{"$nulls":4},{"$f":"Tidsintervaller!E42","v":"15:45:00"},{"$f":"IFERROR(INDEX(EventScheduler[],MATCH(DATEVALUE(DateVal)&DailySchedule[[#This Row],[Klokkeslett]],LookUpDateAndTime,0),3),\"\")","v":""}]
[{"$nulls":4},{"$f":"Tidsintervaller!E43","v":"16:00:00"},{"$f":"IFERROR(INDEX(EventScheduler[],MATCH(DATEVALUE(DateVal)&DailySchedule[[#This Row],[Klokkeslett]],LookUpDateAndTime,0),3),\"\")","v":""}]
[{"$nulls":4},{"$f":"Tidsintervaller!E44","v":"16:15:00"},{"$f":"IFERROR(INDEX(EventScheduler[],MATCH(DATEVALUE(DateVal)&DailySchedule[[#This Row],[Klokkeslett]],LookUpDateAndTime,0),3),\"\")","v":""}]
[{"$nulls":4},{"$f":"Tidsintervaller!E45","v":"16:30:00"},{"$f":"IFERROR(INDEX(EventScheduler[],MATCH(DATEVALUE(DateVal)&DailySchedule[[#This Row],[Klokkeslett]],LookUpDateAndTime,0),3),\"\")","v":""}]
[{"$nulls":4},{"$f":"Tidsintervaller!E46","v":"16:45:00"},{"$f":"IFERROR(INDEX(EventScheduler[],MATCH(DATEVALUE(DateVal)&DailySchedule[[#This Row],[Klokkeslett]],LookUpDateAndTime,0),3),\"\")","v":""}]
[{"$nulls":4},{"$f":"Tidsintervaller!E47","v":"17:00:00"},{"$f":"IFERROR(INDEX(EventScheduler[],MATCH(DATEVALUE(DateVal)&DailySchedule[[#This Row],[Klokkeslett]],LookUpDateAndTime,0),3),\"\")","v":"Hjem"}]
[{"$nulls":4},{"$f":"Tidsintervaller!E48","v":"17:15:00"},{"$f":"IFERROR(INDEX(EventScheduler[],MATCH(DATEVALUE(DateVal)&DailySchedule[[#This Row],[Klokkeslett]],LookUpDateAndTime,0),3),\"\")","v":""}]
[{"$nulls":4},{"$f":"Tidsintervaller!E49","v":"17:30:00"},{"$f":"IFERROR(INDEX(EventScheduler[],MATCH(DATEVALUE(DateVal)&DailySchedule[[#This Row],[Klokkeslett]],LookUpDateAndTime,0),3),\"\")","v":""}]
[{"$nulls":4},{"$f":"Tidsintervaller!E50","v":"17:45:00"},{"$f":"IFERROR(INDEX(EventScheduler[],MATCH(DATEVALUE(DateVal)&DailySchedule[[#This Row],[Klokkeslett]],LookUpDateAndTime,0),3),\"\")","v":""}]
[{"$nulls":4},{"$f":"Tidsintervaller!E51","v":"18:00:00"},{"$f":"IFERROR(INDEX(EventScheduler[],MATCH(DATEVALUE(DateVal)&DailySchedule[[#This Row],[Klokkeslett]],LookUpDateAndTime,0),3),\"\")","v":"Fotballtrening"}]
[{"$nulls":4},{"$f":"Tidsintervaller!E52","v":"18:15:00"},{"$f":"IFERROR(INDEX(EventScheduler[],MATCH(DATEVALUE(DateVal)&DailySchedule[[#This Row],[Klokkeslett]],LookUpDateAndTime,0),3),\"\")","v":""}]
[{"$nulls":4},{"$f":"Tidsintervaller!E53","v":"18:30:00"},{"$f":"IFERROR(INDEX(EventScheduler[],MATCH(DATEVALUE(DateVal)&DailySchedule[[#This Row],[Klokkeslett]],LookUpDateAndTime,0),3),\"\")","v":""}]
[{"$nulls":4},{"$f":"Tidsintervaller!E54","v":"18:45:00"},{"$f":"IFERROR(INDEX(EventScheduler[],MATCH(DATEVALUE(DateVal)&DailySchedule[[#This Row],[Klokkeslett]],LookUpDateAndTime,0),3),\"\")","v":""}]
[{"$nulls":4},{"$f":"Tidsintervaller!E55","v":"19:00:00"},{"$f":"IFERROR(INDEX(EventScheduler[],MATCH(DATEVALUE(DateVal)&DailySchedule[[#This Row],[Klokkeslett]],LookUpDateAndTime,0),3),\"\")","v":""}]
[{"$nulls":4},{"$f":"Tidsintervaller!E56","v":"19:15:00"},{"$f":"IFERROR(INDEX(EventScheduler[],MATCH(DATEVALUE(DateVal)&DailySchedule[[#This Row],[Klokkeslett]],LookUpDateAndTime,0),3),\"\")","v":""}]
[{"$nulls":4},{"$f":"Tidsintervaller!E57","v":"19:30:00"},{"$f":"IFERROR(INDEX(EventScheduler[],MATCH(DATEVALUE(DateVal)&DailySchedule[[#This Row],[Klokkeslett]],LookUpDateAndTime,0),3),\"\")","v":""}]
[{"$nulls":4},{"$f":"Tidsintervaller!E58","v":"19:45:00"},{"$f":"IFERROR(INDEX(EventScheduler[],MATCH(DATEVALUE(DateVal)&DailySchedule[[#This Row],[Klokkeslett]],LookUpDateAndTime,0),3),\"\")","v":""}]
[{"$nulls":4},{"$f":"Tidsintervaller!E59","v":"20:00:00"},{"$f":"IFERROR(INDEX(EventScheduler[],MATCH(DATEVALUE(DateVal)&DailySchedule[[#This Row],[Klokkeslett]],LookUpDateAndTime,0),3),\"\")","v":""}]
[{"$nulls":4},{"$f":"Tidsintervaller!E60","v":"20:15:00"},{"$f":"IFERROR(INDEX(EventScheduler[],MATCH(DATEVALUE(DateVal)&DailySchedule[[#This Row],[Klokkeslett]],LookUpDateAndTime,0),3),\"\")","v":""}]
[{"$nulls":4},{"$f":"Tidsintervaller!E61","v":"20:30:00"},{"$f":"IFERROR(INDEX(EventScheduler[],MATCH(DATEVALUE(DateVal)&DailySchedule[[#This Row],[Klokkeslett]],LookUpDateAndTime,0),3),\"\")","v":""}]
[{"$nulls":4},{"$f":"Tidsintervaller!E62","v":"20:45:00"},{"$f":"IFERROR(INDEX(EventScheduler[],MATCH(DATEVALUE(DateVal)&DailySchedule[[#This Row],[Klokkeslett]],LookUpDateAndTime,0),3),\"\")","v":""}]
[{"$nulls":4},{"$f":"Tidsintervaller!E63","v":"21:00:00"},{"$f":"IFERROR(INDEX(EventScheduler[],MATCH(DATEVALUE(DateVal)&DailySchedule[[#This Row],[Klokkeslett]],LookUpDateAndTime,0),3),\"\")","v":""}]
[{"$nulls":4},{"$f":"Tidsintervaller!E64","v":""},{"$f":"IFERROR(INDEX(EventScheduler[],MATCH(DATEVALUE(DateVal)&DailySchedule[[#This Row],[Klokkeslett]],LookUpDateAndTime,0),3),\"\")","v":""}]
[{"$nulls":4},{"$f":"Tidsintervaller!E65","v":""},{"$f":"IFERROR(INDEX(EventScheduler[],MATCH(DATEVALUE(DateVal)&DailySchedule[[#This Row],[Klokkeslett]],LookUpDateAndTime,0),3),\"\")","v":""}]
[{"$nulls":4},{"$f":"Tidsintervaller!E66","v":""},{"$f":"IFERROR(INDEX(EventScheduler[],MATCH(DATEVALUE(DateVal)&DailySchedule[[#This Row],[Klokkeslett]],LookUpDateAndTime,0),3),\"\")","v":""}]
[{"$nulls":4},{"$f":"Tidsintervaller!E67","v":""},{"$f":"IFERROR(INDEX(EventScheduler[],MATCH(DATEVALUE(DateVal)&DailySchedule[[#This Row],[Klokkeslett]],LookUpDateAndTime,0),3),\"\")","v":""}]
[{"$nulls":4},{"$f":"Tidsintervaller!E68","v":""},{"$f":"IFERROR(INDEX(EventScheduler[],MATCH(DATEVALUE(DateVal)&DailySchedule[[#This Row],[Klokkeslett]],LookUpDateAndTime,0),3),\"\")","v":""}]
[{"$nulls":4},{"$f":"Tidsintervaller!E69","v":""},{"$f":"IFERROR(INDEX(EventScheduler[],MATCH(DATEVALUE(DateVal)&DailySchedule[[#This Row],[Klokkeslett]],LookUpDateAndTime,0),3),\"\")","v":""}]
[{"$nulls":4},{"$f":"Tidsintervaller!E70","v":""},{"$f":"IFERROR(INDEX(EventScheduler[],MATCH(DATEVALUE(DateVal)&DailySchedule[[#This Row],[Klokkeslett]],LookUpDateAndTime,0),3),\"\")","v":""}]
[{"$nulls":4},{"$f":"Tidsintervaller!E71","v":""},{"$f":"IFERROR(INDEX(EventScheduler[],MATCH(DATEVALUE(DateVal)&DailySchedule[[#This Row],[Klokkeslett]],LookUpDateAndTime,0),3),\"\")","v":""}]
[{"$nulls":4},{"$f":"Tidsintervaller!E72","v":""},{"$f":"IFERROR(INDEX(EventScheduler[],MATCH(DATEVALUE(DateVal)&DailySchedule[[#This Row],[Klokkeslett]],LookUpDateAndTime,0),3),\"\")","v":""}]
[{"$nulls":4},{"$f":"Tidsintervaller!E73","v":""},{"$f":"IFERROR(INDEX(EventScheduler[],MATCH(DATEVALUE(DateVal)&DailySchedule[[#This Row],[Klokkeslett]],LookUpDateAndTime,0),3),\"\")","v":""}]
[{"$nulls":4},{"$f":"Tidsintervaller!E74","v":""},{"$f":"IFERROR(INDEX(EventScheduler[],MATCH(DATEVALUE(DateVal)&DailySchedule[[#This Row],[Klokkeslett]],LookUpDateAndTime,0),3),\"\")","v":""}]
[{"$nulls":4},{"$f":"Tidsintervaller!E75","v":""},{"$f":"IFERROR(INDEX(EventScheduler[],MATCH(DATEVALUE(DateVal)&DailySchedule[[#This Row],[Klokkeslett]],LookUpDateAndTime,0),3),\"\")","v":""}]

{"sheet":"Hendelsesplanlegging","index":1,"n_rows":15,"n_cols":8,"rows_kept":15,"merged":[[0,1,0,2],[1,1,4,2],[5,1,6,2],[7,1,7,2]]}
[null,"Hendelsesplanlegging"]
[null,{"$f":"DAY(DateVal)","v":17},null,null,"DATO","KLOKKESLETT","BESKRIVELSE","UNIK VERDI (BEREGNET)"]
[{"$nulls":4},{"$f":"TODAY()","v":"2022-06-17"},"06:00:00","Våkne",{"$f":"EventScheduler[[#This Row],[DATO]]&\"|\"&COUNTIF($E$3:E3,E3)","v":"44729|1"}]
[{"$nulls":4},{"$f":"TODAY()","v":"2022-06-17"},"06:30:00","Dusje",{"$f":"EventScheduler[[#This Row],[DATO]]&\"|\"&COUNTIF($E$3:E4,E4)","v":"44729|2"}]
[{"$nulls":4},"2022-06-17","07:30:00","Dra på arbeid",{"$f":"EventScheduler[[#This Row],[DATO]]&\"|\"&COUNTIF($E$3:E5,E5)","v":"44729|3"}]
[null,{"$f":"TEXT(DateVal,\"dddd\")","v":"fredag"},null,null,"2022-06-17","08:00:00","Starte skiftet mitt",{"$f":"EventScheduler[[#This Row],[DATO]]&\"|\"&COUNTIF($E$3:E6,E6)","v":"44729|4"}]
[{"$nulls":4},"2022-06-17","10:00:00","Pause",{"$f":"EventScheduler[[#This Row],[DATO]]&\"|\"&COUNTIF($E$3:E7,E7)","v":"44729|5"}]
[null,{"$f":"DateVal","v":"17. JUNI 2022"},null,null,"2022-06-17","12:00:00","Lunsj",{"$f":"EventScheduler[[#This Row],[DATO]]&\"|\"&COUNTIF($E$3:E8,E8)","v":"44729|6"}]
[{"$nulls":4},"2022-06-17","13:00:00","Fortsette arbeidet",{"$f":"EventScheduler[[#This Row],[DATO]]&\"|\"&COUNTIF($E$3:E9,E9)","v":"44729|7"}]
[null,"Velg for å redigere tidsintervaller",null,null,"2022-06-17","13:30:00","Ringe sjefene",{"$f":"EventScheduler[[#This Row],[DATO]]&\"|\"&COUNTIF($E$3:E10,E10)","v":"44729|8"}]
[{"$nulls":4},"2022-06-17","15:00:00","Pause",{"$f":"EventScheduler[[#This Row],[DATO]]&\"|\"&COUNTIF($E$3:E11,E11)","v":"44729|9"}]
[null,"Velg for å vise Dagsplan",null,null,"2022-06-17","17:00:00","Hjem",{"$f":"EventScheduler[[#This Row],[DATO]]&\"|\"&COUNTIF($E$3:E12,E12)","v":"44729|10"}]
[{"$nulls":4},"2022-06-17","18:00:00","Fotballtrening",{"$f":"EventScheduler[[#This Row],[DATO]]&\"|\"&COUNTIF($E$3:E13,E13)","v":"44729|11"}]
[{"$nulls":4},{"$f":"TODAY()+1","v":"2022-06-18"},"06:30:00","Frokost",{"$f":"EventScheduler[[#This Row],[DATO]]&\"|\"&COUNTIF($E$3:E15,E14)","v":"44730|2"}]
[{"$nulls":4},{"$f":"TODAY()+1","v":"2022-06-18"},"07:30:00","Dra på arbeid",{"$f":"EventScheduler[[#This Row],[DATO]]&\"|\"&COUNTIF($E$3:E15,E15)","v":"44730|2"}]

{"sheet":"Tidsintervaller","index":2,"n_rows":75,"n_cols":5,"rows_kept":75,"merged":[[0,1,0,2],[1,1,1,2],[9,1,9,2]]}
[null,"Tidsintervaller"]
[null,"REDIGER TIDSPUNKT-TABELL",null,null,"Klokkeslett"]
[{"$nulls":4},{"$f":"Starttidspunkt","v":"06:00:00"}]
[null,"Starttidspunkt","06:00:00",null,{"$f":"IFERROR(IF($E3+Økning>Sluttidspunkt,\"\",$E3+Økning),\"\")","v":"06:15:00"}]
[{"$nulls":4},{"$f":"IFERROR(IF($E4+Økning>Sluttidspunkt,\"\",$E4+Økning),\"\")","v":"06:30:00"}]
[null,"Intervall","15 MIN",null,{"$f":"IFERROR(IF($E5+Økning>Sluttidspunkt,\"\",$E5+Økning),\"\")","v":"06:45:00"}]
[{"$nulls":4},"07:00:00"]
[null,"Sluttidspunkt","21:00:00",null,"07:15:00"]
[{"$nulls":4},"07:30:00"]
[null,"VIS TIDSPLAN",null,null,"07:45:00"]
[{"$nulls":4},"08:00:00"]
[null,"Velg for å vise Dagsplan",null,null,"08:15:00"]
[{"$nulls":4},"08:30:00"]
[null,"Velg for å legge til ny hendelse",null,null,"08:45:00"]
[{"$nulls":4},"09:00:00"]
[{"$nulls":4},"09:15:00"]
[{"$nulls":4},"09:30:00"]
[{"$nulls":4},"09:45:00"]
[{"$nulls":4},"10:00:00"]
[{"$nulls":4},"10:15:00"]
[{"$nulls":4},"10:30:00"]
[{"$nulls":4},"10:45:00"]
[{"$nulls":4},"11:00:00"]
[{"$nulls":4},"11:15:00"]
[{"$nulls":4},"11:30:00"]
[{"$nulls":4},"11:45:00"]
[{"$nulls":4},"12:00:00"]
[{"$nulls":4},"12:15:00"]
[{"$nulls":4},"12:30:00"]
[{"$nulls":4},"12:45:00"]
[{"$nulls":4},"13:00:00"]
[{"$nulls":4},"13:15:00"]
[{"$nulls":4},"13:30:00"]
[{"$nulls":4},"13:45:00"]
[{"$nulls":4},"14:00:00"]
[{"$nulls":4},{"$f":"IFERROR(IF($E35+Økning>Sluttidspunkt,\"\",$E35+Økning),\"\")","v":"14:15:00"}]
[{"$nulls":4},"14:30:00"]
[{"$nulls":4},"14:45:00"]
[{"$nulls":4},"15:00:00"]
[{"$nulls":4},"15:15:00"]
[{"$nulls":4},"15:30:00"]
[{"$nulls":4},"15:45:00"]
[{"$nulls":4},"16:00:00"]
[{"$nulls":4},"16:15:00"]
[{"$nulls":4},"16:30:00"]
[{"$nulls":4},"16:45:00"]
[{"$nulls":4},"17:00:00"]
[{"$nulls":4},"17:15:00"]
[{"$nulls":4},"17:30:00"]
[{"$nulls":4},"17:45:00"]
[{"$nulls":4},"18:00:00"]
[{"$nulls":4},"18:15:00"]
[{"$nulls":4},"18:30:00"]
[{"$nulls":4},"18:45:00"]
[{"$nulls":4},"19:00:00"]
[{"$nulls":4},"19:15:00"]
[{"$nulls":4},"19:30:00"]
[{"$nulls":4},"19:45:00"]
[{"$nulls":4},"20:00:00"]
[{"$nulls":4},"20:15:00"]
[{"$nulls":4},"20:30:00"]
[{"$nulls":4},"20:45:00"]
[{"$nulls":4},"21:00:00"]
[{"$nulls":4},""]
[{"$nulls":4},""]
[{"$nulls":4},""]
[{"$nulls":4},""]
[{"$nulls":4},{"$f":"IFERROR(IF($E67+Økning>Sluttidspunkt,\"\",$E67+Økning),\"\")","v":""}]
[{"$nulls":4},""]
[{"$nulls":4},""]
[{"$nulls":4},""]
[{"$nulls":4},""]
[{"$nulls":4},""]
[{"$nulls":4},""]
[{"$nulls":4},""]